Workbook

Sheet LM(2)5118 Calculator
A1: LM(2)5118 Quick Start Component Calculator | E1: Version 2.01
A2: Revision date: April 2014
A6: Step 1 - Application Requirements
C7: Vout (V) | E7: 48
A8: Enter design requirements in the shaded cells | C8: Vin(min) (V) | E8: 42
C9: Vin(max) (V) | E9: 55
C10: Maximum Average Load Current Iout (A) | E10: 4.2
C11: Ripple Current as % of Maximum Load Current (%) | E11: 0.4
C12: Effciency of Converter (%) | E12: 0.9
C13: VCCX Voltage (V) | E13: 0
C14: Vin at start of Transition to Buck-Boost Mode (V) | E14: =1.33*Vout -> 63.84
C15: Buck-Boost Mode Operation | E15: =IF(Vinmin<1.4*Vout,"YES","NO") -> YES
C17: Recommended Controller IC | E17: =IF(E15 = "NO", "LM5116", "LM5118") -> LM5118
A19: Step 2 - Switching Frequency
C20: Maximum Possible Switching Frequency (kHz) | E20: =IF(Fmax<610,Fmax,500) -> 500
A21: =IF(E21>=E20,"Violation of Minimum On-Time or Max Frequency","") ->  | C21: Switching Frequency (kHz) | E21: 220
A22: =IF(E21>=E20,"Reduce Switching Frequency","") ->  | C22: Timing Resistor, Rt (kW) | E22: =6.4*10^3/Fsw-3.02 -> 26.07090909
A23: =IF(Dviolate<DMaximumAll,"Check Switching Frequency or Decrease Vin","") -> 
A24: Step 3 - Inductor Value
C25: Calculated Buck Mode Inductor Value, Lb (µH) | E25: =IF(Vinmax>E14,((Vout*(Vinmax-Vout))/(Vinmax*Fsw*(Ripple*Iout)))*1000,"NA") -> NA
C26: Calculated Buck-Boost Mode Inductor Value, Lb-b (µH) | E26: =IF(BuckBoostMode="YES",(((Vinmin)*Vout)/((Vinmin+Vout)*Fsw*Ripple*Iout))*1000,"NA") -> 60.60606061
C27: Actual Chosen Inductor Value, L (µH) | E27: 47
C28: Inductor Tolerance (%) | E28: 0.2
A30: Step 4 - Calculate Output and Inductor Currents Based on Chosen Inductor
C31: Buck mode Ripple Current at Vin(max), ΔI (A) | E31: =IF(Vinmax>E14,((Vout*(Vinmax-Vout))/(Vinmax*L*Fsw))*1000,"NA") -> NA
C32: Buck-Boost Ripple Current at Vin(min), ΔI (A) | E32: =(Vout*Vinmin)/(Fsw*L*(Vout+Vinmin))*1000 -> 2.166344294
C33: Buck-Boost Ripple Current at Vin=Vout, ΔI (A) | E33: =IF(Vinmax>=Vout,(Vout*Vout)/((Vout+Vout)*Fsw*L)*1000,"NA") -> 2.321083172
C34: Buck mode Ripple Current at Vin(max), Including inductor tolerance, ΔI (A) | E34: =IrippleBuck/(1-L_tol) -> 
C35: Buck-Boost Ripple Current at Vin(min), Including inductor tolerance, ΔI (A) | E35: =IrippleBB/(1-L_tol) -> 2.707930368
C36: Buck Average Inductor Current at Vin(max), Including Effciency (A) | E36: =Iout/Eff -> 4.666666667
C37: Buck-Boost Average Inductor Current at Vin(min), Including Effciency (A) | E37: =((Vout+Vinmin)/Vinmin)*(Iout/Eff) -> 10
C38: Buck-Mode Peak Inductor Current, Ip(b) (A) | E38: =IF(Vinmax>E14,ILavgBuck+E34/2,"NA") -> NA
C39: Buck-Boost Mode Peak Inductor Current, Ip(b-b) (A) | E39: =IF(BuckBoostMode="YES",ILavgBB+E35/2,"NA") -> 11.35396518
A41: Step 5 - Sense Resistor
C42: Current Limit Margin (% beyond Max Load) (%) | E42: 0.2
C43: Buck Mode K Factor (K) | E43: =1+(10/(Vinmax-Vout)) -> 2.428571429
C44: Selected Buck Mode K Factor (K) | E44: 1.16
C45: Buck-Boost Mode K Factor (K) | E45: =1+(10/Vinmin) -> 1.238095238
C46: Selected Buck-Boost Mode K Factor (K) | E46: 3
C47: Current Sense Resistor, Rs (mW) | E47: =IF((2.5*(1-E42))/(10*(ILavgBB+(IrippleBB*KBB)/2))*1000<(1.25*(1-E42))/(10*(ILavgBuck+(IrippleBuck*KBuck)/2))*1000,(2.5*(1-E42))/(10*(ILavgBB+(IrippleBB*KBB)/2))*1000,(1.25*(1-E42))/(10*(ILavgBuck+(IrippleBuck*KBuck)/2))*1000) -> 
C48: Closest Standard Value, Rs (mW) | E48: 20
A50: Step 6 - Ramp Capacitor
C51: Cramp (pF) | E51: =(L*5*10^-6)/(10*Rs)*10^9 -> 1175
C52: Closest Smaller Standard Value, Cramp (pF) | E52: 4700
C53: Rramp (kW) | E53: =IF(Vout>20,7/(Vout*5*10^-6-50*10^-6)*10^-3,"NA") -> 36.84210526
A55: Step 7 - Current Limits
C56: Buck Mode Peak Inductor Current Limit (A) | E56: =IF(ILPeakLimitBuck<IpeakBuck,"Error",ILPeakLimitBuck) -> Error
C57: Buck-Boost Mode Peak Inductor Current Limit (A) | E57: =IF(ILPeakLimitBB<IpeakBB,"Error",ILPeakLimitBB) -> 12.37105093
A59: Step 9 - Output Capacitors (Based on Worst Case Conditions for Each Mode)
C60: Target output ripple (mV) | E60: 50
C61: Buck-Boost Duty cycle at Vin(min) (%) | E61: =Vout/(Vinmin+Vout) -> 0.5333333333
C62: Buck-Boost RMS Ripple Current in Output Cap (A) | E62: =SQRT(-(DBB*Iout^2)/(DBB-1)) -> 4.489988864
C63: Minimum COUT output Capacitor Value (µF) | E63: =Iout*Vout/(Vinmin+Vout)/(Fsw*DeltaVout)*1000000 -> 203.6363636
C64: Required COUT ESR (mW) | E64: =DeltaVout/(Iout/(1-E61)+IrippleBB/2) -> 4.958756954
C65: Chosen COUT output capacitor value (µF) | E65: 456
C66: Actual COUT ESR (mW) | E66: 4.6
C67: Buck Mode Output Ripple Voltage (mV) | E67: =IF(Vinmax<BuckMode,"NA",Coutesr*((Iout/(1-E61)+(IrippleBB/2)))) -> NA
A69: Step 10 - Input Capacitors (Based on Worst Case Conditions for Each Mode)
C70: Buck-Boost RMS Input Ripple Current (A) | E70: =(Iout/(1-DBB))*SQRT(DBB*(1-DBB)) -> 4.489988864
C71: Buck-Boost Mode Peak to Peak Current Ripple in Input Cap (A) | E71: =IpeakBB -> 11.35396518
C72: Buck Mode RMS input Ripple Current (A) | E72: =IF(Vinmax<BuckMode,"NA",Iout*0.5) -> NA
C73: Buck Mode Peak to Peak Current Ripple in Input Cap (A) | E73: =IpeakBuck -> NA
C74: Initial Input Capacitor Value(μF) | E74: =E39/2/Fsw*1000 -> 25.80446633
C75: Chosen CIN Input Capacitor Value (µF) | E75: 20
A77: Step 11 - Feedback Resistors
C78: Rfb2 (W) | E78: 2670
C79: Rfb1 (W) | E79: =_Rfb2/((Vout/1.23)-1) -> 70.21808852
A81: Step 12 - Chb & Cvcc Capacitor
C82: High-side MOSFET Qg at VGS=10V (nC) | E82: 30
C83: Minimum Bootstrap Capacitor Chb (µF) | E83: =E82*10^-3/(0.05*7) -> 0.08571428571
C84: Chosen Value for Chb (µF) | E84: 0.1
C85: Minimum VCC Bypass Capacitor Cvcc (µF) | E85: =10*E84 -> 1
A87: Step 13 - Error Amplifier Compensation
C88: Right Half Plane Zero Frequency (kHz) | E88: =((Rout*(1-DBB)^2)/(2*PI()*L*DBB*10^-6))/1000 -> 15.80261846
C89: Capacitor ESR Zero Frequency (kHz) | E89: =1/(Cout*Coutesr*2*PI()*10^-6) -> 75.87478218
C90: Capacitor Pole Frequency (kHz) | E90: =(1+DBB)/(2*PI()*Cout*Rout*10^-3) -> 0.0468273864
C91: Bandwidth (kHz) | E91: =fmodRzero/4 -> 3.950654616
C92: Selected Bandwith (kHz) | E92: 1.95
C93: Target Compensation Zero (kHz) | E93: =fcutoff/10 -> 0.195
C94: Target Compensation Pole (kHz) | E94: =fmodRzero -> 15.80261846
C95: Cpole (nF) | E95: =fcompZero/(fcompPole*_Rfb2*CompGain)*10^9 -> 1.584077341
C96: Select Nearest Standard Cpole Value (nF) | E96: 2.2
C97: Czero (nF) | E97: =((1/(CompGain*_Rfb2))-E95*10^-9)*10^9 -> 126.7880757
C98: Select Nearest Standard Czero Value (nF) | E98: 100
C99: Rcomp (W) | E99: =1/(fcompZero*2*3.14*E97*10^-9) -> 6440.614931
C100: Select nearest Standard Rcomp Value (W) | E100: 10000
A102: Step 14 - Soft Start capacitor
C103: Choose soft-start time (ms) | E103: 12
C104: Soft Start Capacitor Value (nF) | E104: =(E103*10^(-5))/1.23*10^6 -> 97.56097561
A106: Step 15 - UVLO Threshold and Hiccup Mode Restart
C107: Minimum Value of Resistor Ruv1 (kW) | E107: =Vinmax -> 55
C108: Chosen Value of Ruv1 (kW) | E108: 75
C109: Desired Undervoltage Threshold (V) | E109: 4
C110: Ruv2 Value (kW) | E110: =1.23*E108/(E109+5*E108*10^(-3)-1.23) -> 29.33227345
C111: Choose off-time of hiccup duty cycle (µs) | E111: 723
C112: Vin voltage for desired hiccup mode off-time (V) | E112: 12
C113: Hiccup Mode Off-time Capacitor Value Cr (nF) | E113: =-(E111*(E110+E108))/(E110*E108*LN(1-((0.98*(E110+E108))/(E110*E112)))) -> 99.91786343

Sheet Bill of Materials
B1: LM5118 List of Components
B3: Component | C3: Description | D3: Value | E3: Minimum Rating
B4: L | C4: Inductor | D4: =L -> 47 | E4: =ILPeakLimitBB -> 12.37105093
B5: Cin | C5: Input capacitor | D5: =Cin -> 20 | E5: =Vinmax -> 55
B6: Cramp | C6: Ramp capacitor | D6: =Cramp -> 4700 | E6: 16
B7: Css | C7: Soft start capacitor | D7: =Css -> 97.56097561 | E7: 6
B8: Cout | C8: Output capacitor | D8: =Cout -> 456 | E8: =Vout -> 48
B9: Cr | C9: UVLO filter capacitor | D9: =Cr -> 99.91786343 | E9: 16
B10: Cpole | C10: Compensation capacitor | D10: =Cpole -> 2.2 | E10: 6
B11: Czero | C11: Compensation capacitor | D11: =Czero -> 100 | E11: 6
B12: Cvcc | C12: VCC bypass capacitor | D12: =Cvcc -> 1 | E12: 12
B13: Chb | C13: HB-SW bypass capacitor | D13: =Chb -> 0.1 | E13: =MAX(Vccx,VCC) -> 7
B14: Rfb1 | C14: Feedback resistor | D14: =_Rfb1 -> 70.21808852 | E14: 1/16 W
B15: Rfb2 | C15: Feedback resistor | D15: =_Rfb2 -> 2670 | E15: 1/16 W
B16: Ruv1 | C16: UVLO divider resistor | D16: =_Ruv1 -> 75 | E16: =IF(AND(Vinmax^2/(_Ruv2*1000)<0.05,Vinmax<=50),"1/16W","1/8W") -> 1/8W
B17: Ruv2 | C17: UVLO divider resistor | D17: =_Ruv2 -> 29.33227345 | E17: 1/16 W
B18: Rs | C18: Sense resistor | D18: =Rs -> 20 | E18: =IF(PRS_BB>PRS_B,PRS_BB,PRS_B) -> 2
B19: Rt | C19: Oscillator timing resistor | D19: =Rt -> 26.07090909 | E19: 1/16 W
B20: Rramp | C20: Optional ramp resistor | D20: =Rramp -> 36.84210526 | E20: =IF(D20="NA","-","1/16 W") -> 1/16 W
B21: Rcomp | C21: Compensation resistor | D21: =Rcomp/1000 -> 10 | E21: 1/16 W

Sheet Bode Plots
A1: Buck-Boost Mode | M1: Buck Mode
B2: Frequency (Hz) | C2: Frequency (rad/sec) | D2: Modulator Gain (dB) | E2: Modulator Phase (deg) | F2: Error Amplifier Gain (dB) | G2: Error Amplifier Phase (deg) | H2: Overall Loop Gain (dB) | I2: Loop Phase (deg) | N2: Frequency (Hz) | O2: Frequency (rad/sec) | P2: Modulator Gain (dB) | Q2: Modulator Phase (deg) | R2: Error Amplifier Gain (dB) | S2: Error Amplifier Phase (deg) | T2: Overall Loop Gain (dB) | U2: Loop Phase (deg)
B3: 0.1 | C3: =2*PI()*B3 -> 0.6283185307 | D3: =20*LOG(AmBB*IMABS(IMDIV(IMPRODUCT(COMPLEX(1,-C3/wrBB),COMPLEX(1,C3/wzBB)),COMPLEX(1,C3/wpBB)))) -> 24.8066233 | E3: =IMARGUMENT(IMDIV(IMPRODUCT(COMPLEX(1,-C3/wrBB),COMPLEX(1,C3/wzBB)),COMPLEX(1,C3/wpBB)))*(180/PI()) -> -0.1226421513 | F3: =20*LOG(Afb*IMABS(IMDIV(IMDIV(COMPLEX(1,C3/wzea),COMPLEX(1,C3/wpea)),COMPLEX(0,C3)))) -> 75.3171612 | G3: =IMARGUMENT(IMDIV(IMDIV(COMPLEX(-1,-C3/wzea),COMPLEX(1,C3/wpea)),COMPLEX(0,C3)))*(180/PI()) -> 90.03522504 | H3: =D3+F3 -> 100.1237845 | I3: =E3+G3 -> 89.91258289 | K3: Modulator - Buck-Boost | N3: 0.1 | O3: =2*PI()*N3 -> 0.6283185307 | P3: =20*LOG(Amb*IMABS(IMDIV(COMPLEX(1,O3/wzb),COMPLEX(1,O3/wpb)))) -> 35.13919246 | Q3: =IMARGUMENT(IMDIV(COMPLEX(1,O3/wzb),COMPLEX(1,O3/wpb)))*(180/PI()) -> -0.1875352445 | R3: =20*LOG(Afb*IMABS(IMDIV(IMDIV(COMPLEX(1,O3/wzea),COMPLEX(1,O3/wpea)),COMPLEX(0,O3)))) -> 75.3171612 | S3: =IMARGUMENT(IMDIV(IMDIV(COMPLEX(-1,-O3/wzea),COMPLEX(1,O3/wpea)),COMPLEX(0,O3)))*(180/PI()) -> 90.03522504 | T3: =P3+R3 -> 110.4563537 | U3: =Q3+S3 -> 89.8476898 | W3: Modulator - Buck
B4: 0.2 | C4: =2*PI()*B4 -> 1.256637061 | D4: 24.80656389 | E4: -0.2452831867 | F4: 69.29656643 | G4: 90.07045006 | H4: 94.10313032 | I4: 89.82516687 | K4: rad/sec | L4: Hz | N4: 0.2 | O4: =2*PI()*N4 -> 1.256637061 | P4: 35.13905277 | Q4: -0.3750664659 | R4: 69.29656643 | S4: 90.07045006 | T4: =P4+R4 -> 104.4356192 | U4: =Q4+S4 -> 89.69538359 | W4: rad/sec | X4: Hz
B5: 0.5 | C5: =2*PI()*B5 -> 3.141592654 | D5: 24.806148 | E5: -0.6131884389 | F5: 61.33780225 | G5: 90.17612465 | H5: 86.14395025 | I5: 89.56293621 | J5: wp | K5: =(1+DBB)/(Cout*10^-6*Rout) -> 294.2251462 | L5: =K5/(2*PI()) -> 46.8273864 | N5: 0.5 | O5: =2*PI()*N5 -> 3.141592654 | P5: 35.13807506 | Q5: -0.9375957734 | R5: 61.33780225 | S5: 90.17612465 | T5: 96.47587731 | U5: 89.23852888 | V5: wz | W5: =1/(Cout*10^-6*Coutesr*10^-3) -> 476735.3166 | X5: =W5/(2*PI()) -> 75874.78218
B6: 1 | C6: =2*PI()*B6 -> 6.283185307 | D6: 24.80466303 | E6: -1.226237429 | F6: 55.31733086 | G6: 90.35224575 | H6: 80.12199389 | I6: 89.12600832 | J6: wr | K6: =(Rout*(1-DBB)^2)/(L*10^-6*DBB) -> 99290.78014 | L6: =K6/(2*PI()) -> 15802.61846 | N6: 1 | O6: =2*PI()*N6 -> 6.283185307 | P6: 35.13458504 | Q6: -1.874689061 | R6: 55.31733086 | S6: 90.35224575 | T6: 90.4519159 | U6: 88.47755669 | V6: wp | W6: =1/(Cout*10^-6*Rout) -> 191.8859649 | X6: =W6/(2*PI()) -> 30.53959983
B7: 2 | C7: =2*PI()*B7 -> 12.56637061 | D7: 24.79872822 | E7: -2.451360412 | F7: 49.29724501 | G7: 90.70446308 | H7: 74.09597323 | I7: 88.25310267 | J7: wz | K7: =1/(Cout*10^-6*Coutesr*10^-3) -> 476735.3166 | L7: =K7/(2*PI()) -> 75874.78218 | N7: 2 | O7: =2*PI()*N7 -> 12.56637061 | P7: 35.12065294 | Q7: -3.745367905 | R7: 49.29724501 | S7: 90.70446308 | T7: 84.41789796 | U7: 86.95909518 | W7: Gain | X7: dB
B8: 5 | C8: 31.41592654 | D8: 24.75741009 | E8: -6.109025227 | F8: 41.34204162 | G8: 91.76066063 | H8: 66.0994517 | I8: 85.6516354 | K8: Gain | L8: dB | N8: 5 | O8: 31.41592654 | P8: 35.02435995 | Q8: -9.294303528 | R8: 41.34204162 | S8: 91.76066063 | T8: 76.36640156 | U8: 82.4663571 | V8: Am | W8: =Rout/Ri -> 57.14285714 | X8: =20*LOG(Amb) -> 35.13923903
B9: 10 | C9: 62.83185307 | D9: 24.61297377 | E9: -12.08316771 | F9: 35.33426305 | G9: 93.51777872 | H9: 59.94723682 | I9: 81.43461101 | J9: Am | K9: =(Rout/Ri)*((1-DBB)/(1+DBB)) -> 17.39130435 | L9: =20*LOG(K9) -> 24.80664311 | N9: 10 | O9: 62.83185307 | P9: 34.69690229 | Q9: -18.12315748 | R9: 35.33426305 | S9: 93.51777872 | T9: 70.03116534 | U9: 75.39462124
B10: 20 | C10: 125.6637061 | D10: 24.07895167 | E10: -23.18476361 | F10: 29.36457297 | G10: 97.00746597 | H10: 53.44352464 | I10: 73.82270236 | N10: 20 | O10: 125.6637061 | P10: 33.58928922 | Q10: -33.20518237 | R10: 29.36457297 | S10: 97.00746597 | T10: 62.95386219 | U10: 63.80228359
B11: 50 | C11: 314.1592654 | D11: 21.50236258 | E11: -47.02019117 | F11: 21.74633639 | G11: 107.0531249 | H11: 43.24869898 | I11: 60.03293368 | K11: Error Amp | N11: 50 | O11: 314.1592654 | P11: 29.4801908 | Q11: -58.54599182 | R11: 21.74633639 | S11: 107.0531249 | T11: 51.2265272 | U11: 48.50713304 | W11: Error Amp
B12: 100 | C12: 628.3185307 | D12: 17.35578697 | E12: -65.19458839 | F12: 16.76143519 | G12: 121.3670038 | H12: 34.11722216 | I12: 56.17241542 | K12: rad/sec | L12: Hz | N12: 100 | O12: 628.3185307 | P12: 24.44925215 | Q12: -72.94202484 | R12: 16.76143519 | S12: 121.3670038 | T12: 41.21068734 | U12: 48.42497897 | W12: rad/sec | X12: Hz
B13: 200 | C13: 1256.637061 | D13: 11.96498335 | E13: -77.39639729 | F13: 13.4081264 | G13: 139.9385885 | H13: 25.37310976 | I13: 62.54219119 | J13: wpea | K13: =(Czero*10^-9+Cpole*10^-9)/(Cpole*10^-9*Czero*10^-9*Rcomp) -> 46454.54545 | L13: =wpea/(2*PI()) -> 7393.470538 | N13: 200 | O13: 1256.637061 | P13: 18.7158356 | Q13: -81.16708534 | R13: 13.4081264 | S13: 139.9385885 | T13: 32.12396201 | U13: 58.77150313 | V13: wpea | W13: =(Czero*10^-9+Cpole*10^-9)/(Cpole*10^-9*Czero*10^-9*Rcomp) -> 46454.54545 | X13: =wpea/(2*PI()) -> 7393.470538
B14: 500 | C14: 3141.592654 | D14: 4.203848762 | E14: -86.0842736 | F14: 11.68007985 | G14: 158.4743483 | H14: 15.88392862 | I14: 72.3900747 | J14: wzea | K14: =1/(Czero*10^-9*Rcomp) -> 1000 | L14: =wzea/(2*PI()) -> 159.1549431 | N14: 500 | O14: 3141.592654 | P14: 10.84112243 | Q14: -86.12719932 | R14: 11.68007985 | S14: 158.4743483 | T14: 22.52120228 | U14: 72.34714898 | V14: wzea | W14: =1/(Czero*10^-9*Rcomp) -> 1000 | X14: =wzea/(2*PI()) -> 159.1549431
B15: 1000 | C15: 6283.185307 | D15: -1.774760665 | E15: -90.18474087 | F15: 11.31066387 | G15: 163.2541721 | H15: 9.535903207 | I15: 73.06943121 | K15: Gain | L15: dB | N15: 1000 | O15: 6283.185307 | P15: 4.833211545 | Q15: -87.49566123 | R15: 11.31066387 | S15: 163.2541721 | T15: 16.14387542 | U15: 75.75851085 | W15: Gain | X15: dB
B16: 2000 | C16: 12566.37061 | D16: -7.734309105 | E16: -94.36189613 | F16: 11.00146631 | G16: 160.3133834 | H16: 3.2671572 | I16: 65.95148726 | J16: Afb | K16: =1/(_Rfb2*(Czero*10^-9+Cpole*10^-9)) -> 3664.695061 | L16: =20*LOG(K16) -> 71.28075686 | N16: 2000 | O16: 12566.37061 | P16: -1.182090093 | Q16: -87.61525054 | R16: 11.00146631 | S16: 160.3133834 | T16: 9.819376213 | U16: 72.69813285 | V16: Afb | W16: =1/(_Rfb2*(Czero*10^-9+Cpole*10^-9)) -> 3664.695061 | X16: =20*LOG(W16) -> 71.28075686
B17: 5000 | C17: 31415.92654 | D17: -15.32995572 | E17: -103.2507257 | F17: 9.649533145 | G17: 144.1074304 | H17: -5.68042257 | I17: 40.85670478 | N17: 5000 | O17: 31415.92654 | P17: -9.124237603 | Q17: -85.87981748 | R17: 9.649533145 | S17: 144.1074304 | T17: 0.5252955423 | U17: 58.22761296
B18: 10000 | C18: 62831.85307 | D18: -20.24600582 | E18: -114.5495089 | F18: 6.764948014 | G18: 125.5654463 | H18: -13.4810578 | I18: 11.01593736 | N18: 10000 | O18: 62831.85307 | P18: -15.08874447 | Q18: -82.31693432 | R18: 6.764948014 | S18: 125.5654463 | T18: -8.323796455 | U18: 43.24851198
B19: 20000 | C19: 125663.7061 | D19: -23.35955249 | E19: -126.7856636 | F19: 2.081098785 | G19: 109.8320832 | H19: -21.27845371 | I19: -16.95358044 | N19: 20000 | O19: 125663.7061 | P19: -20.89237408 | Q19: -75.14567854 | R19: 2.081098785 | S19: 109.8320832 | T19: -18.81127529 | U19: 34.68640462
B20: 50000 | C20: 314159.2654 | D20: -23.7781899 | E20: -129.0229734 | F20: -5.415569079 | G20: 98.22896339 | H20: -29.19375898 | I20: -30.79400998 | N20: 50000 | O20: 314159.2654 | P20: -27.57663131 | Q20: -56.58090203 | R20: -5.415569079 | S20: 98.22896339 | T20: -32.99220039 | U20: 41.64806136
B21: 100000 | C21: 628318.5307 | D21: -21.27803798 | E21: -118.1825247 | F21: -11.36594058 | G21: 94.13726407 | H21: -32.64397855 | I21: -24.04526068 | N21: 100000 | O21: 628318.5307 | P21: -30.79071314 | Q21: -37.17183163 | R21: -11.36594058 | S21: 94.13726407 | T21: -42.15665371 | U21: 56.96543244
B22: 200000 | C22: 1256637.061 | D22: -16.7282862 | E22: -106.2442927 | F22: -17.36880433 | G22: 92.07151471 | H22: -34.09709053 | I22: -14.172778 | N22: 200000 | O22: 1256637.061 | P22: -32.18146952 | Q22: -20.76668963 | R22: -17.36880433 | S22: 92.07151471 | T22: -49.55027385 | U22: 71.30482508
B23: 500000 | C23: 3141592.654 | D23: -9.277277834 | E23: -96.81316706 | F23: -25.32262535 | G23: 90.82892976 | H23: -34.59990319 | I23: -5.984237298 | N23: 500000 | O23: 3141592.654 | P23: -32.66656839 | Q23: -8.625277603 | R23: -25.32262535 | S23: 90.82892976 | T23: -57.98919374 | U23: 82.20365216
B24: 1000000 | C24: 6283185.307 | D24: -3.333873803 | E24: -93.43096004 | F24: -31.34251349 | G24: 90.41448803 | H24: -34.6763873 | I24: -3.016472005 | N24: 1000000 | O24: 6283185.307 | P24: -32.74051272 | Q24: -4.337241246 | R24: -31.34251349 | S24: 90.41448803 | T24: -64.08302621 | U24: 86.07724679

Sheet Worksheet (hidden)
E2: 10 is buck | F2: 10 is buck-boost
B4: =IF(Vout>0.7*Vin_nominal,"Buck-Boost Mode","Buck Mode") ->  | D4: Vin | E4: Vout
E5: 12
D6: 20 | E6: =IF(E5<0.7*D6,10,0) -> 10 | F6: =IF(E5>0.7*D6,10,0) -> 0
D7: 19 | E7: =IF(E5<0.7*D7,10,0) -> 10 | F7: =IF(E5>0.7*D7,10,0) -> 0
D8: 18 | E8: =IF(E5<0.7*D8,10,0) -> 10 | F8: =IF(E5>0.7*D8,10,0) -> 0
D9: 17 | E9: =IF(E5<0.7*D9,10,0) -> 0 | F9: =IF(E5>0.7*D9,10,0) -> 10
D10: 16 | E10: =IF(E5<0.7*D10,10,0) -> 0 | F10: =IF(E5>0.7*D10,10,0) -> 10
D11: 14 | E11: =IF(E7<0.7*D11,10,0) -> 0 | F11: =IF(E5>0.7*D11,10,0) -> 10
D12: 13 | E12: =IF(E8<0.7*D12,10,0) -> 0 | F12: =IF(E5>0.7*D12,10,0) -> 10
D13: 12 | E13: =IF(E5<0.7*D13,10,0) -> 0 | F13: =IF(E5>0.7*D13,10,0) -> 10
D14: 11 | E14: =IF(E5<0.7*D14,10,0) -> 0 | F14: =IF(E5>0.7*D14,10,0) -> 10
D15: 10 | E15: =IF(E5<0.7*D15,10,0) -> 0 | F15: =IF(E5>0.7*D15,10,0) -> 10
E17: 12
C18: 13 | D18: 75 | E18: =E17/0.7 -> 17.14285714 | F18: =E18 -> 17.14285714
C19: 13 | D19: 74 | E19: =E17/0.7 -> 17.14285714
C20: 13 | D20: 73 | E20: =E17/0.7 -> 17.14285714
C21: 13 | D21: 72 | E21: =E17/0.7 -> 17.14285714
C22: 13 | D22: 71 | E22: =E17/0.7 -> 17.14285714
C23: 13 | D23: 70 | E23: =E17/0.7 -> 17.14285714
C24: 13 | D24: =D23-1 -> 69 | E24: =E17/0.7 -> 17.14285714
C25: 13 | D25: 68 | E25: =E17/0.7 -> 17.14285714
C26: 13 | D26: 67 | E26: =E17/0.7 -> 17.14285714
C27: 13 | D27: 66 | E27: =E17/0.7 -> 17.14285714
C28: 13 | D28: 65 | E28: =E17/0.7 -> 17.14285714
C29: 13 | D29: 64 | E29: 17.14285714
C30: 13 | D30: 63 | E30: 17.14285714
C31: 13 | D31: 62 | E31: 17.14285714
C32: 13 | D32: 61 | E32: 17.14285714
C33: 13 | D33: 60 | E33: 17.14285714
C34: 13 | D34: =D33-1 -> 59 | E34: 17.14285714
C35: 13 | D35: 58 | E35: 17.14285714
C36: 13 | D36: 57 | E36: 17.14285714
C37: 13 | D37: 56 | E37: 17.14285714
C38: 13 | D38: 55 | E38: 17.14285714
C39: 13 | D39: 54 | E39: 17.14285714
C40: 13 | D40: 53 | E40: 17.14285714
C41: 13 | D41: 52 | E41: 17.14285714
C42: 13 | D42: 51 | E42: 17.14285714
C43: 13 | D43: 50 | E43: 17.14285714
C44: 13 | D44: 49 | E44: 17.14285714
C45: 13 | D45: 48 | E45: 17.14285714
C46: 13 | D46: 47 | E46: 17.14285714
C47: 13 | D47: 46 | E47: 17.14285714
C48: 13 | D48: 45 | E48: 17.14285714
C49: 13 | D49: 44 | E49: 17.14285714
C50: 13 | D50: 43 | E50: 17.14285714
C51: 13 | D51: 42 | E51: 17.14285714
C52: 13 | D52: 41 | E52: 17.14285714
C53: 13 | D53: 40 | E53: 17.14285714
C54: 13 | D54: 39 | E54: 17.14285714
C55: 13 | D55: 38 | E55: 17.14285714
C56: 13 | D56: 37 | E56: 17.14285714
C57: 13 | D57: 36 | E57: 17.14285714
C58: 13 | D58: 35 | E58: 17.14285714
C59: 13 | D59: 34 | E59: 17.14285714
C60: 13 | D60: 33 | E60: 17.14285714
C61: 13 | D61: 32 | E61: 17.14285714
C62: 13 | D62: 31 | E62: 17.14285714
C63: 13 | D63: 30 | E63: 17.14285714
C64: 13 | D64: 29 | E64: 17.14285714
C65: 13 | D65: 28 | E65: 17.14285714
C66: 13 | D66: 27 | E66: 17.14285714
C67: 13 | D67: 26 | E67: 17.14285714
C68: 13 | D68: 25 | E68: 17.14285714
C69: 13 | D69: 24 | E69: 17.14285714
C70: 13 | D70: 23 | E70: 17.14285714
C71: 13 | D71: 22 | E71: 17.14285714
C72: 13 | D72: 21 | E72: 17.14285714
C73: 13 | D73: 20 | E73: 17.14285714
C74: 13 | D74: 19 | E74: 17.14285714
C75: 13 | D75: 18 | E75: 17.14285714
C76: 13 | D76: 17 | E76: 17.14285714
C77: 13 | D77: 16 | E77: 17.14285714
C78: 13 | D78: 15 | E78: 17.14285714
C79: 13 | D79: 14 | E79: 17.14285714
C80: 13 | D80: 13 | E80: 17.14285714
C81: 13 | D81: 12 | E81: 17.14285714
C82: 13 | D82: 11 | E82: 17.14285714
C83: 13 | D83: 10 | E83: 17.14285714
C84: 13 | D84: 9 | E84: 17.14285714
C85: 13 | D85: 8 | E85: 17.14285714
C86: 13 | D86: 7 | E86: 17.14285714
C87: 13 | D87: 6 | E87: 17.14285714
C88: 13 | D88: 5 | E88: 17.14285714
C89: 13 | D89: 4 | E89: 17.14285714

Sheet Graph (hidden)
C4: Vinmin | D4: Vinmax | E4: Lower ts limit | F4: Upper ts limit | G4: Lo B-B Voltage | H4: Hi B-B voltage | I4: Lower Buck | J4: Upper Buck
C7: =Vinmin -> 42 | D7: =Vinmax -> 55 | E7: =1.15*Vout -> 55.2 | F7: =Vout/0.75 -> 64 | G7: =Vinmin -> 42 | H7: =E7 -> 55.2 | I7: =Vout/0.75 -> 64 | J7: =Vinmax -> 55 | L7: =Vout -> 48 | M7: =Vin_nominal -> 
C8: Buck-Boost | G8: 5 | H8: =IF(Vinmax<H7,Vinmax,H7) -> 55
C9: Graph-Trans | F9: =IF(Vinmax>F7,F7,IF(Vinmax>E7,Vinmax,0)) -> 0
C10: Offset-Trans | F10: =F9-H8 -> -55
B12: NEW | C12: Buck | H12: =IF(Vinmax>F7,Vinmax,0) -> 0
B13: Offset | C13: Offset-Buck | H13: =H12-F7 -> -64
